bitfinex-derivatives/quotes_SOLF0:USTF0_20250522
["timestamp","ask_amount","ask_price","bid_price","bid_amount"]
[1747902150282,1.9192,179.23,179.12,365.0]
[1747902150481,1.9192,179.23,179.13,5.5811]
[1747902150880,5.5807,179.16,179.13,365.0]
[1747902151086,0.04253497,179.16,179.13,0.03527197]
[1747902152881,5.62293497,179.16,179.13,0.03527197]
[1747902153086,0.04253497,179.16,179.13,0.03527197]
[1747902153584,5.5811,179.14,179.13,0.03527197]
[1747902156285,0.04253497,179.16,179.13,0.03527197]
[1747902157191,0.04253497,179.16,179.13,365.03527197]
[1747902158185,5.5811,179.14,179.13,365.03527197]
[1747902161190,5.5808,179.15,179.13,365.03527197]
[1747902161390,0.04253497,179.16,179.13,365.03527197]
[1747902161794,5.5811,179.14,179.13,365.03527197]
[1747902163094,5.5811,179.14,179.13,0.03527197]
[1747902165791,0.04253497,179.16,179.13,0.03527197]
[1747902167098,5.5807,179.15,179.13,0.03527197]
[1747902167298,0.04253497,179.16,179.13,0.03527197]
[1747902167890,5.581,179.14,179.13,0.03527197]
[1747902172699,5.5825,179.1,179.03,7.07270152]
[1747902172897,5.5825,179.1,179.04,769.2162]
[1747902173299,5.5825,179.1,179.06,5.5833]
[1747902173700,5.5825,179.1,179.06,5.62378154]
[1747902173898,0.04100185,179.1,179.07,5.5832]
[1747902174099,0.04100185,179.1,179.06,0.04048154]
[1747902175211,5.62350185,179.1,179.06,5.62378154]
[1747902175405,0.04100185,179.1,179.06,5.62378154]
[1747902175606,5.62350185,179.1,179.06,5.62378154]
[1747902176911,5.62350185,179.1,179.07,5.5832]
[1747902177308,5.62350185,179.1,179.06,0.04048154]
[1747902177504,5.62350185,179.1,179.07,5.5832]
[1747902177914,5.5826,179.09,179.06,5.62388154]
[1747902178104,0.04100185,179.1,179.06,370.62388154]
[1747902178712,5.5828,179.09,179.06,370.62388154]
[1747902178911,0.04100185,179.1,179.06,365.04048154]
[1747902179512,0.04100185,179.1,179.07,5.583]
[1747902179714,0.04100185,179.1,179.06,365.04048154]
[1747902180407,5.62350185,179.1,179.07,5.583]
[1747902180912,0.04100185,179.1,179.07,5.583]
[1747902181213,0.04100185,179.1,179.06,365.04048154]
[1747902181712,0.04100185,179.1,179.08,5.5827]
[1747902181912,0.04100185,179.1,179.08,370.5827]
[1747902182516,0.04100185,179.1,179.09,5.5826]
[1747902183411,180.9877,179.15,179.12,5.5815]
[1747902183604,179.0052,179.15,179.12,365.0]
[1747902183805,177.14,179.15,179.12,365.0]
[1747902184314,177.18057869,179.15,179.12,365.04034287]
[1747902184616,5.5814,179.13,179.12,365.04034287]
[1747902184816,5.5814,179.13,179.12,0.04034287]
[1747902185004,1.9543,179.14,179.05,3.38455961]
[1747902185203,3.9055,179.14,179.05,3.38455961]
[1747902185812,5.5828,179.09,179.05,8.96825961]
[1747902186111,5.5828,179.09,179.08,0.03970092]
[1747902190719,0.04043612,179.11,179.02,365.0]
[1747902190918,108.0778,179.13,179.02,365.0]
[1747902191120,5.5844,179.04,179.02,365.0]
[1747902191318,171.4,179.09,179.02,365.0]
[1747902191616,5.5838,179.06,179.04,0.0402816]
[1747902191819,0.04003039,179.07,179.04,0.0402816]
[1747902192709,5.5839,179.05,179.04,0.0402816]
[1747902194218,5.5839,179.05,178.97,370.27665961]
[1747902194219,5.5853,179.01,178.97,370.27665961]
[1747902194626,1.8898,179.06,178.98,3.1729191]
[1747902194821,1.8898,179.06,178.98,368.1729191]
[1747902195115,0.03929661,179.04,179.0,0.03605495]
[1747902195517,5.5851,179.01,179.0,0.03605495]
[1747902196316,5.5848,179.02,179.0,0.03605495]
[1747902197025,5.5851,179.01,179.0,0.03605495]
[1747902197225,171.44,179.01,178.91,3.38455961]
[1747902197622,171.44,179.01,178.92,3.17094191]
[1747902197817,171.44,179.01,178.96,5.5866]
[1747902198123,171.44,179.01,178.92,10.24364343]
[1747902198327,0.04055405,179.0,178.97,5.6223778]
[1747902198731,0.04055405,179.0,178.97,0.0360778]
[1747902199429,0.04055405,179.0,178.97,5.6221778]
[1747902199625,5.5857,178.99,178.97,0.0360778]
[1747902199831,0.04055405,179.0,178.97,0.0360778]
[1747902200519,5.62605405,179.0,178.97,0.0360778]
[1747902200827,0.04055405,179.0,178.97,0.0360778]
[1747902201031,0.04055405,179.0,178.99,5.5857]
[1747902201231,171.46,179.06,178.97,7.10877932]
[1747902201428,482.56,179.07,178.97,7.10877932]
[1747902201630,5.5841,179.05,179.01,5.5849]
[1747902201929,171.46,179.09,178.98,1.9972]
[1747902202131,171.46,179.09,179.01,5.5851]
[1747902202327,0.03976687,179.06,179.03,0.04233957]
[1747902203132,5.5842,179.05,179.03,0.04233957]
[1747902204040,0.03976687,179.06,179.03,0.04233957]
[1747902204942,5.62336687,179.06,179.03,0.04233957]
[1747902205243,0.03976687,179.06,179.03,0.04233957]
[1747902205636,5.5839,179.05,179.03,0.04233957]
[1747902206346,5.5842,179.04,179.03,0.04233957]
[1747902206737,0.03976687,179.06,179.03,0.04233957]
[1747902206937,5.5841,179.05,179.03,0.04233957]
[1747902207246,0.03976687,179.06,179.03,0.04233957]
[1747902207843,5.5842,179.04,179.03,0.04233957]
[1747902208244,0.03976687,179.06,179.03,0.04233957]
[1747902208844,5.62346687,179.06,179.03,0.04233957]
[1747902209846,5.62346687,179.06,179.03,5.62673957]
[1747902210647,5.5839,179.05,179.03,5.62673957]
[1747902210848,0.03976687,179.06,179.03,0.04233957]
[1747902211347,5.5842,179.04,179.03,0.04233957]
[1747902215554,3.2862,179.04,179.03,0.04233957]
[1747902225755,3.8982,179.05,178.93,5.5874]
[1747902225958,166.96,179.04,178.91,113.21270152]
[1747902226153,106.14,179.03,178.91,106.14]
[1747902226453,5.5865,178.97,178.93,5.5874]
[1747902226659,106.14,179.03,178.91,106.14]
[1747902226857,0.03888666,178.99,178.96,0.03523732]
[1747902227663,5.5864,178.97,178.96,0.03523732]
[1747902228762,166.98,178.98,178.89,3.38455961]
[1747902228961,168.8853,178.98,178.89,3.38455961]
[1747902229567,166.98,178.98,178.89,3.38455961]
[1747902229768,0.03983314,178.95,178.92,0.03550271]
[1747902230953,0.03983314,178.95,178.92,5.62320271]
[1747902232566,5.62683314,178.95,178.92,5.62320271]
[1747902232762,5.62683314,178.95,178.92,0.03550271]
[1747902233160,0.03983314,178.95,178.92,0.03550271]
[1747902233359,0.03983314,178.95,178.92,5.62310271]
[1747902234370,0.03983314,178.95,178.93,5.5876]
[1747902235071,0.03983314,178.95,178.93,365.0]
[1747902235264,5.62683314,178.95,178.93,365.0]
[1747902235963,5.5873,178.94,178.93,365.0]
[1747902236468,0.03983314,178.95,178.92,365.03550271]
[1747902236664,5.5876,178.93,178.92,365.03550271]
[1747902236966,1.9645,178.94,178.89,3.38455961]
[1747902237370,1.9645,178.94,178.86,4.51306937]
[1747902237567,1.9645,178.94,178.84,6.77008888]
[1747902237761,5.5901,178.85,178.84,6.77008888]
[1747902237966,172.5901,178.85,178.84,6.77008888]
[1747902238279,5.5904,178.84,178.83,0.03871779]
[1747902239271,167.0,178.85,178.77,4.58114457]
[1747902239669,5.5919,178.8,178.77,4.58114457]
[1747902239863,167.0,178.85,178.77,4.58114457]
[1747902240373,5.5917,178.8,178.79,0.03951086]
[1747902241471,5.5931,178.76,178.71,365.0]
[1747902241766,167.06,178.78,178.71,365.0]
[1747902241967,167.06,178.77,178.67,3.911]
[1747902242468,5.5941,178.73,178.7,0.04025233]
[1747902242680,0.04045687,178.74,178.7,0.04025233]
[1747902242965,5.5941,178.73,178.7,0.04025233]
[1747902243173,0.04045687,178.74,178.7,0.04025233]
[1747902244767,5.5945,178.71,178.7,0.04025233]
[1747902244967,0.04045687,178.74,178.7,0.04025233]
[1747902245673,5.5945,178.71,178.7,0.04025233]
[1747902246772,172.5345,178.71,178.7,0.04025233]
[1747902247170,166.94,178.71,178.63,1.9144]
[1747902247476,166.94,178.71,178.59,3.9023]
[1747902247664,166.94,178.71,178.59,11.4062]
[1747902248074,0.03939589,178.67,178.63,0.04215659]
[1747902248272,5.5964,178.65,178.63,0.04215659]
[1747902248463,0.03939589,178.67,178.63,0.04215659]
[1747902249374,5.5963,178.66,178.63,0.04215659]
[1747902249571,0.03939589,178.67,178.63,0.04215659]
[1747902249970,5.5961,178.66,178.63,0.04215659]
[1747902250571,0.03939589,178.67,178.63,0.04215659]
[1747902251674,5.5966,178.65,178.63,0.04215659]
[1747902252177,5.5961,178.66,178.63,0.04215659]
[1747902252577,0.03939589,178.67,178.63,0.04215659]
[1747902252977,5.63529589,178.67,178.63,0.04215659]
[1747902253479,0.03939589,178.67,178.63,5.63905659]
[1747902253679,0.03939589,178.67,178.63,0.04215659]
[1747902254068,5.63519589,178.67,178.63,0.04215659]
[1747902254878,5.5967,178.64,178.63,0.04215659]
[1747902255073,0.03939589,178.67,178.63,0.04215659]
[1747902257180,0.03939589,178.67,178.64,5.5964]
[1747902257686,0.03939589,178.67,178.63,0.04215659]
[1747902258278,5.5961,178.66,178.63,0.04215659]
[1747902258581,0.03939589,178.67,178.63,0.04215659]
[1747902258777,5.5966,178.65,178.63,0.04215659]
[1747902258985,0.03939589,178.67,178.63,0.04215659]
[1747902259384,5.5967,178.64,178.63,0.04215659]
[1747902263084,167.1,178.64,178.5,365.0]
[1747902263390,167.1,178.64,178.51,2.0307]
[1747902264183,0.03626058,178.59,178.56,0.04218004]
[1747902264383,5.5985,178.58,178.56,0.04218004]
[1747902264792,5.5988,178.57,178.56,0.04218004]
[1747902265096,0.03626058,178.59,178.56,0.04218004]
[1747902265487,5.5987,178.58,178.56,0.04218004]
[1747902266289,0.03626058,178.59,178.56,0.04218004]
[1747902266795,5.5988,178.58,178.56,0.04218004]
[1747902266994,0.03626058,178.59,178.56,0.04218004]
[1747902267498,5.5988,178.57,178.56,0.04218004]
[1747902267994,0.03626058,178.59,178.56,0.04218004]
[1747902269203,5.5987,178.58,178.56,0.04218004]
[1747902269396,0.03626058,178.59,178.56,0.04218004]
[1747902269593,0.03626058,178.59,178.56,5.64128004]
[1747902269899,0.03626058,178.59,178.56,0.04218004]
[1747902270893,0.03626058,178.59,178.58,5.5985]
[1747902271400,0.03626058,178.59,178.57,5.5988]
[1747902271895,0.03626058,178.59,178.56,0.04218004]
[1747902272095,0.03626058,178.59,178.58,5.5985]
[1747902272501,0.03626058,178.59,178.56,0.04218004]
[1747902272696,0.03626058,178.59,178.57,5.5988]
[1747902272899,0.03626058,178.59,178.56,0.04218004]
[1747902273100,0.03626058,178.59,178.58,5.5985]
[1747902273303,2.0549,178.66,178.56,0.04218004]
[1747902273794,2.0549,178.66,178.56,7.11488156]
[1747902274296,0.04140994,178.63,178.56,7.11488156]
[1747902274795,0.04140994,178.63,178.59,5.598]
[1747902275001,0.04140994,178.63,178.58,2.0615]
[1747902275398,5.5977,178.61,178.58,2.0615]
[1747902275600,0.04140994,178.63,178.58,2.0615]
[1747902275795,0.04140994,178.63,178.56,0.04218004]
[1747902276400,5.5984,178.59,178.56,0.04218004]
[1747902276600,5.6346082,178.59,178.56,0.04218004]
[1747902276800,0.0362082,178.59,178.56,0.04218004]
[1747902277402,5.5986,178.58,178.56,0.04218004]
[1747902278203,5.5988,178.57,178.56,0.04218004]
[1747902278892,5.5985,178.58,178.56,0.04218004]
[1747902279100,0.0362082,178.59,178.56,0.04218004]
[1747902279500,5.5988,178.57,178.56,0.04218004]
[1747902279893,0.0362082,178.59,178.56,0.04218004]
[1747902280099,5.5986,178.58,178.56,0.04218004]
[1747902280299,0.0362082,178.59,178.56,0.04218004]
[1747902282207,0.0362082,178.59,178.56,5.64118004]
[1747902282407,0.0362082,178.59,178.56,0.04218004]
[1747902282704,5.5986,178.58,178.56,0.04218004]
[1747902283009,0.0362082,178.59,178.56,0.04218004]
[1747902283409,5.6345082,178.59,178.56,0.04218004]
[1747902284602,5.6345082,178.59,178.57,3.12478659]
[1747902285611,0.0362082,178.59,178.57,3.12478659]
[1747902285797,0.0362082,178.59,178.58,5.5985]
[1747902286509,0.0362082,178.59,178.58,3.12478659]
[1747902286700,5.6344082,178.59,178.58,3.12478659]
[1747902288008,0.0362082,178.59,178.58,3.12478659]
[1747902290714,5.6344082,178.59,178.58,3.12478659]
[1747902292599,5.5988,178.57,178.56,0.04218004]
[1747902292909,0.0362082,178.59,178.56,0.04218004]
[1747902294404,5.5988,178.58,178.56,0.04218004]
[1747902294611,0.0362082,178.59,178.56,0.04218004]
[1747902294911,5.5987,178.58,178.56,0.04218004]
[1747902295208,0.0362082,178.59,178.56,0.04218004]
[1747902295410,5.5987,178.58,178.56,0.04218004]
[1747902296307,5.5988,178.57,178.56,0.04218004]
[1747902297006,5.5986,178.58,178.56,0.04218004]
[1747902297211,0.0362082,178.59,178.56,0.04218004]
[1747902297613,5.6345082,178.59,178.56,0.04218004]
[1747902297814,0.0362082,178.59,178.56,0.04218004]
[1747902298414,5.6346082,178.59,178.56,0.04218004]
[1747902298609,0.0362082,178.59,178.56,0.04218004]
[1747902301215,5.5988,178.58,178.56,0.04218004]
[1747902301819,0.0362082,178.59,178.56,0.04218004]
[1747902301820,5.5988,178.57,178.56,0.04218004]
[1747902302310,0.0362082,178.59,178.51,3.45729341]
[1747902302514,113.47270152,178.58,178.51,3.45729341]
[1747902302814,3.9582,178.57,178.46,6.77008888]
[1747902303316,5.6014,178.49,178.46,6.77008888]
[1747902303510,5.6014,178.49,178.47,0.03985173]
[1747902303703,5.6014,178.49,178.48,1.40937547]
[1747902303903,5.6017,178.48,178.47,0.03985173]
[1747902304108,5.6017,178.48,178.46,6.77008888]
[1747902304109,0.04212092,178.5,178.46,6.77008888]
[1747902304313,1.98812092,178.5,178.41,365.0]
[1747902304911,5.6028,178.45,178.41,370.6038]
[1747902305114,5.64202641,178.45,178.41,370.6038]
[1747902305816,0.03922641,178.45,178.41,365.0]
[1747902306211,166.41922641,178.45,178.37,4.61867077]
[1747902306608,106.42,178.44,178.37,4.61867077]
[1747902306811,106.42,178.44,178.36,3.20148814]
[1747902306812,5.6046,178.39,178.36,3.20148814]
[1747902307008,5.64603353,178.39,178.36,3.20148814]
[1747902307212,0.04143353,178.39,178.36,3.20148814]
[1747902307511,0.04143353,178.39,178.36,5.6052]
[1747902308013,0.04143353,178.39,178.33,7.07270152]
[1747902308513,0.04143353,178.39,178.33,372.07270152]
[1747902308718,483.94,178.47,178.37,7.07270152]
[1747902308922,489.5422,178.47,178.39,7.07270152]
[1747902309213,483.94,178.47,178.39,7.07270152]
[1747902309817,0.03927536,178.45,178.41,0.03547116]
[1747902310317,0.03927536,178.45,178.42,5.6035]
[1747902310514,0.03927536,178.45,178.41,0.03547116]
[1747902310907,0.03927536,178.45,178.42,5.6035]
[1747902311113,0.03927536,178.45,178.41,0.03547116]
[1747902311816,0.03927536,178.45,178.41,365.03547116]
[1747902312217,0.03927536,178.45,178.42,5.6033]
[1747902313021,0.03927536,178.45,178.43,5.6032]
[1747902313316,0.03927536,178.45,178.41,365.03547116]
[1747902313521,5.5999,178.54,178.43,7.07270152]
[1747902313722,5.5999,178.54,178.49,5.6013]
[1747902314017,650.5,178.56,178.47,7.07270152]
[1747902314322,650.5,178.56,178.45,106.46]
[1747902314323,484.06,178.56,178.52,5.6004]
[1747902314518,0.03930168,178.56,178.52,5.63986008]
[1747902314719,0.03930168,178.56,178.52,0.03946008]
[1747902315920,0.03930168,178.56,178.52,5.63976008]
[1747902316119,0.03930168,178.56,178.52,0.03946008]
[1747902317721,0.03930168,178.56,178.53,5.5999]
[1747902318019,0.03930168,178.56,178.52,0.03946008]
[1747902318326,3.8298,178.64,178.52,0.03946008]
[1747902318523,166.42,178.62,178.52,106.46]
[1747902319422,5.5977,178.61,178.55,5.5993]
[1747902319611,0.04211379,178.59,178.55,0.04141853]
[1747902321511,5.64041379,178.59,178.55,0.04141853]
[1747902321923,0.04211379,178.59,178.55,0.04141853]
[1747902322126,0.04211379,178.59,178.55,5.64091853]
[1747902322321,0.04211379,178.59,178.55,0.04141853]
[1747902323419,0.04211379,178.59,178.56,5.5989]
[1747902323620,0.04211379,178.59,178.55,0.04141853]
[1747902323924,166.38,178.64,178.55,0.04141853]
[1747902324824,0.04135877,178.61,178.55,0.04141853]
[1747902325628,5.598,178.6,178.55,5.64071853]
[1747902325829,0.04135877,178.61,178.55,0.04141853]
[1747902326226,0.04135877,178.61,178.56,5.5991]
[1747902326419,0.04135877,178.61,178.55,0.04141853]
[1747902327422,0.04135877,178.61,178.55,11.25710984]
[1747902328522,0.04135877,178.61,178.6,5.5979]
[1747902328729,166.36,178.67,178.55,11.21569131]
[1747902328928,2.0105,178.77,178.55,376.21569131]
[1747902329119,5.5945,178.71,178.65,5.5961]
[1747902329521,5.5945,178.71,178.6,276.6299]
[1747902329722,0.04087942,178.67,178.66,5.596]
[1747902329923,0.03790471,178.68,178.65,0.0414261]
[1747902330122,0.03790471,178.68,178.67,5.5957]
[1747902330725,0.03790471,178.68,178.65,0.0414261]
[1747902331330,166.34,178.74,178.65,0.0414261]
[1747902331725,166.34,178.74,178.7,5.5945]
[1747902332126,166.34,178.74,178.63,11.21569131]
[1747902332328,166.34,178.74,178.69,5.5949]
[1747902332523,0.03858193,178.7,178.69,5.5949]
[1747902332728,0.03858193,178.7,178.67,0.03723901]
[1747902332729,7.464,178.77,178.72,5.5941]
[1747902333029,7.464,178.77,178.68,2.0135]
[1747902333630,0.04065084,178.74,178.71,5.63352604]
[1747902333830,0.04065084,178.74,178.71,0.03932604]
[1747902334638,0.04065084,178.74,178.71,5.63362604]
[1747902335229,0.04065084,178.74,178.71,0.03932604]
[1747902335838,0.04065084,178.74,178.73,5.5938]
[1747902336230,0.04065084,178.74,178.71,0.03932604]
[1747902336432,0.04065084,178.74,178.71,5.63352604]
[1747902336738,0.04065084,178.74,178.71,0.03932604]
[1747902339340,5.63415084,178.74,178.71,0.03932604]
[1747902339537,0.04065084,178.74,178.71,0.03932604]
[1747902341941,0.04065084,178.74,178.72,5.5941]
[1747902342140,0.04065084,178.74,178.71,0.03932604]
[1747902342444,0.04065084,178.74,178.72,5.5939]
[1747902342840,165.72,178.92,178.72,5.6]
[1747902343055,5.9182,178.91,178.8,7.10384112]
[1747902343348,165.72,178.94,178.82,7.10384112]
[1747902343645,165.72,178.94,178.81,3.8504]
[1747902343848,0.03932707,178.89,178.86,0.03701372]
[1747902344146,0.03932707,178.89,178.88,5.5891]
[1747902344446,0.03932707,178.89,178.86,0.03701372]
[1747902345641,5.585,179.23,178.89,16.8]
[1747902345846,5.9097,179.15,178.98,11.15194477]
[1747902346046,5.9097,179.15,178.99,272.02]
[1747902346248,165.7,179.14,178.91,16.8]
[1747902346444,165.7,179.14,178.96,11.15439805]
[1747902346740,0.03752102,179.05,179.02,0.03817267]
[1747902347350,0.03752102,179.05,178.87,589.74]
[1747902347535,165.64,179.08,178.92,11.15845396]
[1747902347735,165.64,179.08,178.9,2.0497]
[1747902347942,165.64,179.08,178.93,11.15713133]
[1747902348240,165.64,179.08,178.99,0.0389311]
[1747902348545,0.04161076,179.02,178.99,0.0389311]
[1747902351547,0.04161076,179.02,178.99,5.6245311]
[1747902351750,165.64,179.08,178.99,0.0389311]
[1747902352344,5.5838,179.06,178.99,0.0389311]
[1747902352643,0.03777661,179.04,178.99,0.0389311]
[1747902353548,0.03777661,179.04,178.99,5.6246311]
[1747902354151,0.03777661,179.04,178.99,0.0389311]
[1747902354845,5.62197661,179.04,178.99,0.0389311]
[1747902355455,0.03777661,179.04,178.99,0.0389311]
[1747902356448,0.03777661,179.04,178.91,165.5]
[1747902356642,0.03777661,179.04,178.8,11.1832]
[1747902356643,600.17802386,179.03,178.84,1.8678]
[1747902356843,167.4482,179.02,178.85,1.9245]
[1747902357048,167.4482,179.02,178.85,167.4245]
[1747902357547,167.4482,179.02,178.84,3.8853]
[1747902357548,5.5876,178.93,178.92,0.04125328]
[1747902358852,171.12542173,178.94,178.92,0.04125328]
[1747902359253,165.53812173,178.94,178.92,0.04125328]
[1747902359453,5.5876,178.93,178.92,0.04125328]
[1747902360554,165.53812173,178.94,178.92,0.04125328]
[1747902361952,0.03812173,178.94,178.92,0.04125328]
[1747902373865,5.62552173,178.94,178.92,0.04125328]
[1747902374265,0.03812173,178.94,178.92,0.04125328]
[1747902379160,5.5876,178.93,178.92,0.04125328]
[1747902379357,0.03812173,178.94,178.92,0.04125328]
[1747902379565,5.62562173,178.94,178.92,0.04125328]
[1747902379769,0.03812173,178.94,178.92,0.04125328]
[1747902380170,5.62562173,178.94,178.92,0.04125328]
[1747902380368,0.03812173,178.94,178.92,0.04125328]
[1747902382569,0.03812173,178.94,178.92,5.62905328]
[1747902382871,0.03812173,178.94,178.92,0.04125328]
[1747902388881,1.9812,179.07,178.92,0.04125328]
[1747902389082,165.44,179.02,178.91,11.15802386]
[1747902389281,165.44,179.02,178.92,3.9911]
[1747902389884,0.03759185,178.99,178.95,0.04012074]
[1747902390890,0.03759185,178.99,178.97,5.5861]
[1747902391384,0.03759185,178.99,178.95,0.04012074]
[1747902391996,0.03759185,178.99,178.97,5.5861]
[1747902392198,0.03759185,178.99,178.95,0.04012074]
[1747902392590,0.03759185,178.99,178.96,5.5864]
[1747902392798,0.03759185,178.99,178.95,0.04012074]
[1747902393002,0.03759185,178.99,178.96,5.5866]
[1747902393386,0.03759185,178.99,178.95,0.04012074]
[1747902393587,0.03759185,178.99,178.97,5.5863]
[1747902394098,0.03759185,178.99,178.98,5.586]
[1747902394798,0.03759185,178.99,178.97,5.5863]
[1747902395499,0.03759185,178.99,178.98,5.586]
[1747902395698,0.03759185,178.99,178.95,0.04012074]
[1747902396496,0.03759185,178.99,178.98,5.586]
[1747902397192,0.03759185,178.99,178.97,5.5863]
[1747902397390,0.03759185,178.99,178.95,0.04012074]
[1747902397804,13.80562366,179.17,178.95,16.7781446]
[1747902398099,13.80562366,179.17,179.03,11.15802386]
[1747902398285,13.80562366,179.17,179.04,277.2687]
[1747902398689,13.80562366,179.17,179.05,3.1294363]
[1747902398892,0.03561721,179.1,179.07,0.0427983]
[1747902399096,0.03561721,179.1,179.07,5.6259983]
[1747902399601,0.03561721,179.1,179.08,5.5828]
[1747902400104,0.03561721,179.1,179.07,5.6259983]
[1747902400601,0.03561721,179.1,179.07,0.0427983]
[1747902404002,0.03561721,179.1,178.99,274.69983981]
[1747902404202,2.0303,179.12,178.99,274.69983981]
[1747902404706,5.5843,179.04,178.99,271.32]
[1747902404902,165.16,179.08,178.99,271.32]
[1747902405100,0.03800178,179.05,179.02,0.04017918]
[1747902407199,5.5845,179.03,179.02,0.04017918]
[1747902407397,1.9511,179.04,178.94,165.16]
[1747902407598,5.586,178.99,178.94,165.16]
[1747902407903,165.16,179.02,178.92,5.8491]
[1747902408307,0.03947482,178.99,178.95,0.03826667]
[1747902408710,0.03947482,178.99,178.95,5.62516667]
[1747902409101,0.03947482,178.99,178.95,0.03826667]
[1747902409309,5.5862,178.98,178.95,0.03826667]
[1747902409705,0.03947482,178.99,178.95,0.03826667]
[1747902411412,0.03947482,178.99,178.96,5.5864]
[1747902411914,0.03947482,178.99,178.97,5.5863]
[1747902412508,0.03947482,178.99,178.98,5.586]
[1747902413007,165.18,179.06,178.95,0.03826667]
[1747902413308,165.18,179.06,178.94,165.18]
[1747902413702,165.18,179.06,178.96,5.5866]
[1747902414107,5.5851,179.01,178.99,0.04246815]
[1747902415612,0.03689005,179.03,178.99,0.04246815]
[1747902416709,5.585,179.02,178.99,0.04246815]
[1747902416916,0.03689005,179.03,178.99,0.04246815]
[1747902417709,5.62149005,179.03,178.99,0.04246815]
[1747902419312,0.03689005,179.03,178.99,0.04246815]
[1747902419518,0.03689005,179.03,179.0,5.5852]
[1747902420122,0.03689005,179.03,178.99,0.04246815]
[1747902420620,5.5851,179.02,178.99,0.04246815]
[1747902420821,0.03689005,179.03,178.99,0.04246815]
[1747902421721,5.5853,179.01,178.99,0.04246815]
[1747902422523,5.5854,179.0,178.99,0.04246815]
[1747902425630,170.7854,179.0,178.99,0.04246815]
[1747902426828,165.2,179.0,178.9,3.14900306]
[1747902427018,165.2,179.0,178.9,368.14900306]
[1747902427217,165.2,179.0,178.9,373.73750306]
[1747902427729,0.04201479,178.97,178.93,0.04200529]
[1747902430129,5.62861479,178.97,178.93,5.62940529]
[1747902430834,5.5868,178.96,178.93,0.04200529]
[1747902431133,0.04201479,178.97,178.93,365.04200529]
[1747902431332,5.62841479,178.97,178.93,370.62950529]
[1747902433531,0.04201479,178.97,178.93,365.04200529]
[1747902433731,0.04201479,178.97,178.93,0.04200529]
[1747902434837,5.5868,178.96,178.93,0.04200529]
[1747902435136,0.04201479,178.97,178.93,0.04200529]
[1747902435537,5.5873,178.94,178.93,0.04200529]
[1747902438537,5.5871,178.95,178.93,0.04200529]
[1747902438733,0.04201479,178.97,178.93,0.04200529]
[1747902438935,5.5873,178.94,178.93,0.04200529]
[1747902442737,5.5888,178.9,178.86,5.5897]
[1747902443738,5.5895,178.87,178.86,0.03661049]
[1747902447254,0.03972052,178.9,178.86,0.03661049]
[1747902447760,5.5893,178.88,178.86,0.03661049]
[1747902449058,0.03972052,178.9,178.87,5.5893]
[1747902449257,0.03972052,178.9,178.87,7.08739458]
[1747902449457,165.92,178.94,178.87,372.08739458]
[1747902449653,5.588,178.92,178.88,5.5891]
[1747902449855,165.92,178.94,178.87,7.08739458]
[1747902450162,5.589,178.89,178.86,0.03661049]
[1747902450362,0.03734843,178.89,178.86,0.03661049]
[1747902451263,5.5895,178.87,178.86,0.03661049]
[1747902451855,0.03734843,178.89,178.86,0.03661049]
[1747902453067,0.03734843,178.89,178.87,5.5895]
[1747902453263,0.03734843,178.89,178.86,0.03661049]
[1747902453859,0.03734843,178.89,178.88,5.5892]
[1747902454259,0.03734843,178.89,178.86,0.03661049]
[1747902454565,0.03734843,178.89,178.87,5.5893]
[1747902454862,0.03734843,178.89,178.87,370.5893]
[1747902455163,0.03734843,178.89,178.88,5.5892]
[1747902455362,0.03734843,178.89,178.87,365.0]
[1747902456366,0.03734843,178.89,178.88,5.5892]
[1747902457770,0.03734843,178.89,178.87,370.5894]
[1747902458666,0.03734843,178.89,178.88,5.5892]
[1747902461372,165.16,178.95,178.88,365.0]
[1747902461867,5.587,178.95,178.91,5.5882]
[1747902462069,165.16,178.99,178.89,4.0263]
[1747902462269,165.16,178.99,178.89,369.0263]
[1747902462568,0.03804337,178.96,178.92,0.04083752]
[1747902462871,5.5872,178.95,178.92,5.62863752]
[1747902463072,5.5872,178.95,178.92,0.04083752]
[1747902463266,0.03804337,178.96,178.92,0.04083752]
[1747902463767,5.5871,178.95,178.92,0.04083752]
[1747902464771,5.5873,178.94,178.92,0.04083752]
[1747902466172,0.03804337,178.96,178.92,0.04083752]
[1747902467077,0.03804337,178.96,178.94,5.5871]
[1747902467467,0.03804337,178.96,178.92,0.04083752]
[1747902467967,5.587,178.95,178.92,5.62863752]